fUSD/lending_fUSD_20251026
["ID","MTS","AMOUNT","RATE_DAILY","PERIOD"]
[392413079,1761448243067,-500.0,0.00032987,9]
[392413080,1761448243076,-500.0,0.00032987,9]
[392413081,1761448243086,-500.0,0.00032987,9]
[392413082,1761448243095,-500.0,0.00032987,9]
[392413083,1761448243104,-500.0,0.00032987,9]
[392413085,1761448243113,-500.0,0.00032987,9]
[392413086,1761448243122,-470.03,0.00032987,14]
[392413087,1761448243131,-500.0,0.00032987,9]
[392413088,1761448243141,-512.56,0.00032987,9]
[392413089,1761448243150,-500.0,0.00032987,9]
[392413090,1761448243159,-500.0,0.00032987,9]
[392413091,1761448243168,-500.0,0.00032987,9]
[392413092,1761448243177,-500.0,0.00032987,9]
[392413093,1761448243186,-518.07,0.00032987,9]
[392413094,1761448243196,-500.0,0.00032987,9]
[392413095,1761448243205,-500.0,0.00032987,9]
[392413096,1761448243215,-500.0,0.00032987,9]
[392413097,1761448243224,-500.0,0.00032987,9]
[392413098,1761448243234,-500.0,0.00032987,9]
[392413099,1761448243243,-500.0,0.00032987,9]
[392413100,1761448243252,-500.0,0.00032987,9]
[392413101,1761448243363,-500.0,0.00032987,9]
[392413102,1761448243373,-500.0,0.00032987,9]
[392413103,1761448243382,-187.34697314,0.00032987,9]
[392413104,1761448243391,-223.92314178,0.00032987,9]
[392413105,1761448243400,-500.0,0.00032987,9]
[392413106,1761448243409,-500.0,0.00032987,9]
[392413107,1761448243419,-500.0,0.00032987,9]
[392413108,1761448243427,-500.0,0.00032987,9]
[392413109,1761448243436,-493.52584471,0.00032987,9]
[392413110,1761448243445,-500.0,0.00032987,9]
[392413111,1761448243454,-3372.57,0.00032987,2]
[392413112,1761448243466,-500.0,0.00032987,9]
[392413113,1761448243477,-500.0,0.00032987,2]
[392413114,1761448243486,-477.14014509,0.00032987,9]
[392413115,1761448243495,-500.0,0.00032987,9]
[392413116,1761448243504,-500.0,0.00032987,9]
[392413117,1761448243514,-500.0,0.00032987,9]
[392413118,1761448243523,-500.0,0.00032987,9]
[392413119,1761448243532,-500.0,0.00032987,9]
[392413120,1761448243543,-500.0,0.00032987,9]
[392413121,1761448243552,-500.0,0.00032987,9]
[392413122,1761448243561,-500.0,0.00032987,9]
[392413123,1761448243570,-500.0,0.00032987,9]
[392413124,1761448243579,-543.78,0.00032987,2]
[392413125,1761448243588,-500.0,0.00032987,9]
[392413126,1761448243597,-500.0,0.00032987,9]
[392413127,1761448243606,-500.0,0.00032987,9]
[392413128,1761448243615,-534.73,0.00032987,9]
[392413129,1761448243624,-500.0,0.00032987,9]
[392413130,1761448243633,-500.0,0.00032987,9]
[392413131,1761448243643,-500.0,0.00032987,9]
[392413132,1761448243651,-500.0,0.00032987,9]
[392413133,1761448243660,-500.0,0.00032987,9]
[392413134,1761448243669,-886.99,0.00032987,9]
[392413135,1761448243678,-500.0,0.00032987,9]
[392413136,1761448243687,-500.0,0.00032987,9]
[392413137,1761448243696,-500.0,0.00032987,9]
[392413138,1761448243705,-500.0,0.00032987,9]
[392413139,1761448243714,-500.0,0.00032987,9]
[392413140,1761448243723,-500.0,0.00032987,9]
[392413141,1761448243732,-215.74697291,0.00032987,9]
[392413142,1761448243741,-500.0,0.00032987,2]
[392413143,1761448243750,-500.0,0.00032987,9]
[392413144,1761448243759,-228.02534576,0.00032987,9]
[392413145,1761448243768,-500.0,0.00032987,9]
[392413146,1761448243777,-500.0,0.00032987,9]
[392413147,1761448243786,-775.86,0.00032987,9]
[392413148,1761448243795,-500.0,0.00032987,9]
[392413149,1761448243804,-500.0,0.00032987,9]
[392413150,1761448243813,-500.0,0.00032987,9]
[392413151,1761448243822,-607.4,0.00032987,9]
[392413152,1761448243831,-500.0,0.00032987,9]
[392413153,1761448243839,-500.0,0.00032987,9]
[392413154,1761448243849,-500.0,0.00032987,9]
[392413155,1761448243858,-500.0,0.00032987,9]
[392413156,1761448243867,-500.0,0.00032987,9]
[392413157,1761448243875,-500.0,0.00032987,9]
[392413158,1761448243884,-500.0,0.00032987,9]
[392413159,1761448243893,-500.0,0.00032987,9]
[392413160,1761448243903,-500.0,0.00032987,9]
[392413161,1761448243912,-500.0,0.00032987,9]
[392413162,1761448243921,-500.0,0.00032987,9]
[392413163,1761448243930,-500.0,0.00032987,9]
[392413164,1761448243939,-500.0,0.00032987,9]
[392413165,1761448243948,-500.0,0.00032988,9]
[392413166,1761448243957,-500.0,0.00032988,9]
[392413167,1761448243966,-500.0,0.00032988,9]
[392413168,1761448243975,-500.0,0.00032988,9]
[392413169,1761448243984,-500.0,0.00032988,9]
[392413170,1761448243993,-500.0,0.00032988,9]
[392413171,1761448244002,-500.0,0.00032988,9]
[392413172,1761448244010,-500.0,0.00032988,9]
[392413173,1761448244020,-500.0,0.00032988,9]
[392413174,1761448244029,-500.0,0.00032988,9]
[392413175,1761448244038,-500.0,0.00032988,9]
[392413176,1761448244047,-504.8094676,0.00032988,9]
[392413177,1761448244056,-500.0,0.00032988,9]
[392413178,1761448244065,-500.0,0.00032988,9]
[392413179,1761448244074,-500.0,0.00032988,9]
[392413180,1761448244083,-500.0,0.00032988,9]
[392413181,1761448244092,-500.0,0.00032988,9]
[392413182,1761448244101,-580.61428263,0.00032988,9]
[392413183,1761448244111,-579.04,0.00032988,9]
[392413184,1761448244120,-500.0,0.00032988,9]
[392413185,1761448244129,-500.0,0.00032988,9]
[392413186,1761448244138,-500.0,0.00032988,9]
[392413187,1761448244147,-500.0,0.00032988,9]
[392413188,1761448244156,-500.0,0.00032988,9]
[392413189,1761448244165,-897.92,0.00032988,9]
[392413190,1761448244175,-511.62228878,0.00032988,9]
[392413191,1761448244184,-500.0,0.00032988,9]
[392413192,1761448244194,-500.0,0.00032988,9]
[392413193,1761448244204,-501.77074807,0.00032988,2]
[392413194,1761448244213,-500.0,0.00032988,9]
[392413195,1761448244223,-283.49241891,0.00032988,2]
[392413196,1761448244233,-515.61,0.00032988,9]
[392413197,1761448244242,-500.0,0.00032988,9]
[392413198,1761448244252,-500.0,0.00032988,9]
[392413199,1761448244261,-500.0,0.00032988,9]
[392413200,1761448244270,-500.0,0.00032988,9]
[392413201,1761448244278,-500.0,0.00032988,9]
[392413202,1761448244288,-500.0,0.00032988,9]
[392413203,1761448244297,-500.0,0.00032988,9]
[392413204,1761448244307,-500.0,0.00032988,9]
[392413205,1761448244319,-500.0,0.00032988,9]
[392413206,1761448244328,-504.98760704,0.00032988,9]
[392413207,1761448244337,-500.0,0.00032988,9]
[392413208,1761448244346,-500.0,0.00032988,9]
[392413209,1761448244357,-500.0,0.00032988,9]
[392413210,1761448244366,-500.0,0.00032988,9]
[392413211,1761448244376,-500.0,0.00032988,9]
[392413212,1761448244386,-635.92984262,0.00032988,9]
[392413213,1761448244395,-500.0,0.00032988,9]
[392413214,1761448244404,-500.0,0.00032988,9]
[392413215,1761448244413,-500.0,0.00032988,9]
[392413216,1761448244422,-500.0,0.00032988,9]
[392413217,1761448244435,-500.0,0.00032988,9]
[392413218,1761448244445,-500.0,0.00032988,9]
[392413219,1761448244455,-500.0,0.00032988,9]
[392413220,1761448244466,-729.44,0.00032988,9]
[392413221,1761448244479,-500.0,0.00032988,9]
[392413222,1761448244490,-500.0,0.00032988,9]
[392413223,1761448244500,-500.0,0.00032988,9]
[392413224,1761448244512,-500.0,0.00032988,9]
[392413225,1761448244521,-500.0,0.00032988,9]
[392413226,1761448244531,-500.0,0.00032988,9]
[392413227,1761448244542,-500.0,0.00032988,9]
[392413228,1761448244551,-500.0,0.00032988,9]
[392413229,1761448244562,-500.0,0.00032988,9]
[392413230,1761448244571,-500.0,0.00032988,9]
[392413231,1761448244581,-300.0,0.00032988,2]
[392413232,1761448244590,-500.0,0.00032988,9]
[392413233,1761448244601,-500.0,0.00032988,9]
[392413234,1761448244609,-500.0,0.00032988,9]
[392413235,1761448244618,-500.0,0.00032988,9]
[392413236,1761448244627,-500.0,0.00032988,9]
[392413237,1761448244636,-500.0,0.00032988,9]
[392413238,1761448244645,-500.0,0.00032988,9]
[392413239,1761448244655,-524.32794278,0.00032988,9]
[392413240,1761448244664,-500.0,0.00032988,9]
[392413241,1761448244673,-500.0,0.00032988,9]
[392413242,1761448244682,-500.0,0.00032988,9]
[392413243,1761448244691,-500.0,0.00032988,9]
[392413244,1761448244700,-500.0,0.00032988,9]
[392413245,1761448244708,-500.0,0.00032988,9]
[392413246,1761448244717,-224.81317749,0.00032988,9]
[392413247,1761448244726,-500.0,0.00032988,9]
[392413248,1761448244735,-500.0,0.00032988,9]
[392413249,1761448244745,-209.98716152,0.00032988,9]
[392413250,1761448244754,-500.0,0.00032988,9]
[392413251,1761448244763,-500.0,0.00032988,9]
[392413252,1761448244772,-500.0,0.00032988,9]
[392413253,1761448244782,-500.0,0.00032988,9]
[392413254,1761448244792,-500.0,0.00032988,9]
[392413255,1761448244801,-500.0,0.00032988,9]
[392413256,1761448244810,-500.0,0.00032988,9]
[392413257,1761448244819,-500.0,0.00032988,9]
[392413258,1761448244829,-500.0,0.00032988,9]
[392413259,1761448244839,-500.0,0.00032988,9]
[392413260,1761448244849,-528.42694448,0.00032988,9]
[392413261,1761448244858,-500.0,0.00032988,9]
[392413262,1761448244867,-500.0,0.00032988,9]
[392413263,1761448244875,-500.0,0.00032988,9]
[392413264,1761448244884,-500.0,0.00032988,9]
[392413265,1761448244894,-515.17151762,0.00032988,9]
[392413266,1761448244902,-500.0,0.00032988,9]
[392413267,1761448244911,-1001.93463,0.00032988,2]
[392413268,1761448244920,-500.0,0.00032988,9]
[392413269,1761448244929,-150.0,0.00032988,2]
[392413270,1761448244939,-150.0,0.00032988,2]
[392413271,1761448244948,-500.0,0.00032988,2]
[392413272,1761448244957,-150.0,0.00032988,9]
[392413273,1761448244967,-500.0,0.00032988,9]
[392413274,1761448244975,-150.0,0.00032988,9]
[392413275,1761448244984,-202.06659123,0.00032988,9]
[392413276,1761448245002,-150.0,0.00032988,9]
[392413277,1761448245012,-150.0,0.00032988,2]
[392413278,1761448245022,-500.0,0.00032988,9]
[392413279,1761448245031,-500.0,0.00032988,9]
[392413280,1761448245041,-500.0,0.00032989,9]
[392413281,1761448245050,-309.14648851,0.00032989,10]
[392413282,1761448245060,-500.0,0.00032989,9]
[392413283,1761448245069,-300.0,0.00032989,10]
[392413284,1761448245079,-500.0,0.00032989,2]
[392413285,1761448245088,-13854.93283192,0.00032989,2]
[392413286,1761448245097,-609.47814274,0.0003299,2]
[392413287,1761448245107,-148734.695903,0.0003299,3]
[392413288,1761448245117,-77956.7529157,0.0003299,3]
[392413289,1761448245127,-517.45088826,0.00032995,2]
[392413290,1761448245138,-500.0,0.00032999,9]
[392413291,1761448245147,-300.0,0.00032999,10]
[392413292,1761448245157,-500.0,0.00032999,2]
[392413293,1761448245167,-308672.26212718,0.00033,2]
[392413294,1761448245178,-527.572161,0.00033,8]
[392413295,1761448245188,-2000.0,0.00033,2]
[392413296,1761448245197,-168.0,0.00033012,2]
[392413297,1761448245206,-150.0,0.00033043,2]
[392413298,1761448245215,-150.0,0.00033043,2]
[392413299,1761448245225,-500.0,0.00033043,2]
[392413300,1761448245234,-150.0,0.00033043,9]
[392413301,1761448245243,-500.0,0.00033043,9]
[392413302,1761448245253,-212.55778729,0.00033043,9]
[392413303,1761448245263,-150.0,0.00033043,9]
[392413304,1761448245272,-500.0,0.00033043,9]
[392413305,1761448245281,-500.0,0.00033043,9]
[392413306,1761448245290,-476.0,0.00033043,2]
[392413307,1761448245300,-10623.9068502,0.0003306,3]
[392413308,1761448245309,-500.0,0.00033069,2]
[392413309,1761448245435,-500.0,0.0003307,2]
[392413310,1761448245455,-500.0,0.0003307,2]
[392413312,1761448245467,-700.0,0.0003307,2]
[392413314,1761448245477,-500.0,0.0003307,2]
[392413316,1761448245487,-700.0,0.0003307,2]
[392413318,1761448245496,-500.0,0.0003307,2]
[392413319,1761448245505,-1013.91355159,0.0003307,2]
[392413320,1761448245515,-500.0,0.0003307,2]
[392413321,1761448245524,-513.76937298,0.0003307,2]
[392413322,1761448245533,-700.0,0.0003307,2]
[392413323,1761448245543,-500.0,0.00033073,5]
[392413324,1761448245552,-503.15429765,0.00033073,5]
[392413325,1761448245562,-500.0,0.00033073,5]
[392413326,1761448245574,-12992.7921526,0.00033088,3]
[392413327,1761448245584,-300.0,0.00033089,10]
[392413328,1761448245594,-500.0,0.00033089,9]
[392413329,1761448245603,-787.0,0.0003309,5]
[392413330,1761448245612,-53119.5342511,0.0003309,3]
[392413332,1761448245621,-51971.1686104,0.0003309,3]
[392413333,1761448245630,-339.06149373,0.0003309,2]
[392413334,1761448245639,-150.0,0.00033098,2]
[392413335,1761448245648,-150.0,0.00033098,2]
[392413336,1761448245657,-500.0,0.00033098,2]
[392413337,1761448245666,-150.0,0.00033098,9]
[392413338,1761448245675,-498.60791418,0.00033098,9]
[392413339,1761448245684,-150.0,0.00033098,9]
[392413340,1761448245693,-500.0,0.00033098,9]
[392413341,1761448245701,-500.0,0.00033098,9]
[392413342,1761448245710,-1136.53438476,0.00033099,6]
[392413343,1761448245719,-112235.62100781,0.000331,30]
[392413344,1761448245728,-395.0,0.000331,2]
[392413345,1761448245738,-500.0,0.000331,7]
[392413346,1761448245747,-500.0,0.000331,7]
[392413347,1761448245756,-500.0,0.000331,7]
[392413348,1761448245766,-949.474349,0.000331,11]
[392413349,1761448245775,-1555.382963,0.00033111,60]
[392413350,1761448245784,-231.0,0.00033128,7]
[392413351,1761448245794,-511.9,0.0003315,2]
[392413352,1761448245803,-174.1952368,0.00033152,2]
[392413353,1761448245811,-150.0,0.00033152,2]
[392413354,1761448245820,-500.0,0.00033152,2]
[392413355,1761448245830,-150.0,0.00033152,9]
[392413356,1761448245839,-154.61889119,0.00033152,9]
[392413357,1761448245849,-500.0,0.00033152,9]
[392413358,1761448245859,-397.26749005,0.00033152,9]
[392413359,1761448245868,-336.24,0.00033165,2]
[392413360,1761448245878,-168.0,0.00033175,2]
[392413361,1761448245887,-327.48,0.000332,2]
[392413362,1761448245896,-157.55618326,0.00033207,2]
[392413363,1761448245905,-500.0,0.00033207,2]
[392413364,1761448245915,-208.92505329,0.00033207,9]
[392413365,1761448245924,-500.0,0.00033207,9]
[392413366,1761448245932,-168.0,0.00033248,2]
[392413367,1761448245942,-500.0,0.00033251,9]
[392413368,1761448245951,-64963.960763,0.00033251,3]
[392413369,1761448245960,-12773.12747734,0.00033252,3]
[392413370,1761448245981,-385.11699999,0.00033252,3]
[392413372,1761448246299,-500.0,0.000329,11]
[392413373,1761448246308,-151.0,0.00032988,2]
[392413374,1761448246317,-2261.01771047,0.00033252,3]
[392413375,1761448246330,-314.15403926,0.00033252,3]
[392413381,1761448358242,300.21,0.00013699,2]
[392413392,1761448594123,200.20869457,0.00013631,2]
[392413479,1761449217719,5148.85559296,0.000162,5]
[392413490,1761449351155,-210.23929522,0.00017,2]
[392413504,1761449431879,-39.76070478,0.00017,2]
[392413505,1761449431889,-471.83690966,0.00018,2]
[392413506,1761449431898,-300.21,0.00020187,2]
[392413507,1761449431908,-151.0,0.00024009,2]
[392413508,1761449431917,-500.0,0.00024932,2]
[392413509,1761449431927,-500.0,0.00024932,2]
[392413510,1761449431936,-500.0,0.00024932,2]
[392413511,1761449431945,-300.21,0.00026676,2]
[392413512,1761449431955,-250.0,0.00027,2]
[392413513,1761449431965,-300.0,0.00027389,2]
[392413514,1761449431974,-1200.0,0.00027389,2]
[392413515,1761449431983,-300.0,0.00027389,2]
[392413516,1761449431992,-4325.05922319,0.0002739,7]
[392413517,1761449432001,-5069.17488589,0.00028,2]
[392413518,1761449432010,-9936.9477956,0.00028,2]
[392413519,1761449432019,-172.8,0.00029034,2]
[392413520,1761449432029,-420.0,0.00029599,2]
[392413521,1761449432038,-221.0,0.00029599,2]
[392413522,1761449432047,-1680.0,0.00029729,2]
[392413523,1761449432058,-12671.7790998,0.0003013,2]
[392413524,1761449432066,-198.57164609,0.0003013,2]
[392413525,1761449432075,-1205.1632263,0.0003013,2]
[392413526,1761449432085,-7611.69538154,0.0003013,2]
[392413527,1761449432096,-224.0251,0.00030589,2]
[392413528,1761449432107,-150.0907863,0.0003059,2]
[392413529,1761449432116,-166.66,0.00030689,30]
[392413530,1761449432126,-166.66,0.00031335,30]
[392413531,1761449432135,-999.0,0.00031381,3]
[392413532,1761449432144,-194.4156284,0.000315,2]
[392413533,1761449432153,-150.0,0.000315,2]
[392413534,1761449432163,-200.0,0.00031516,2]
[392413535,1761449432172,-1062.03,0.00031593,2]
[392413536,1761449432182,-500.0,0.00031608,7]
[392413537,1761449432192,-500.0,0.00031608,7]
[392413538,1761449432201,-500.0,0.00031608,7]
[392413539,1761449432210,-169.29,0.00031774,2]
[392413540,1761449432220,-438.18,0.00031975,2]
[392413541,1761449432231,-166.66,0.00031981,30]
[392413542,1761449432240,-320.0,0.00031987,3]
[392413543,1761449432249,-216.30493057,0.00032,120]
[392413545,1761449432258,-946.76,0.00032167,2]
[392413547,1761449432267,-438.18,0.00032199,2]
[392413549,1761449432276,-2351.0,0.00032268,3]
[392413552,1761449432285,-161.97,0.00032377,2]
[392413554,1761449432294,-438.18,0.00032423,2]
[392413556,1761449432303,-166.66,0.00032627,30]
[392413558,1761449432312,-438.18,0.00032647,2]
[392413560,1761449432321,-285.384,0.00032743,33]
[392413562,1761449432330,-168.0,0.00032743,2]
[392413565,1761449432339,-188.238,0.00032743,33]
[392413568,1761449432348,-1253.12991509,0.00032758,2]
[392413570,1761449432357,-1253.1299151,0.00032769,2]
[392413572,1761449432367,-1253.1299151,0.00032788,2]
[392413573,1761449432376,-1253.1299151,0.00032808,2]
[392413575,1761449432385,-438.18,0.00032871,2]
[392413577,1761449432395,-183.35983904,0.00032887,2]
[392413579,1761449432404,-1253.12991509,0.00032908,2]
[392413581,1761449432414,-183.35983904,0.00032938,2]
[392413583,1761449432423,-151.0,0.00032965,2]
[392413585,1761449432432,-151.0,0.00032965,2]
[392413587,1761449432441,-151.0,0.00032965,2]
[392413589,1761449432450,-151.0,0.00032965,2]
[392413591,1761449432458,-151.0,0.00032965,2]
[392413593,1761449432468,-151.0,0.00032965,2]
[392413595,1761449432477,-151.0,0.00032965,2]
[392413597,1761449432486,-151.0,0.00032965,2]
[392413599,1761449432495,-151.0,0.00032965,2]
[392413601,1761449432505,-151.0,0.00032965,2]
[392413603,1761449432514,-151.0,0.00032965,2]
[392413605,1761449432523,-151.0,0.00032965,2]
[392413607,1761449432533,-151.0,0.00032965,2]
[392413609,1761449432542,-151.0,0.00032965,2]
[392413611,1761449432552,-151.0,0.00032965,2]
[392413612,1761449432560,-151.0,0.00032965,2]
[392413613,1761449432570,-151.0,0.00032965,2]
[392413614,1761449432585,-151.0,0.00032965,2]
[392413615,1761449432594,-151.0,0.00032965,2]
[392413616,1761449432603,-151.0,0.00032965,2]
[392413617,1761449432614,-1425.0,0.00032975,2]
[392413618,1761449432624,-183.35983904,0.00032979,2]
[392413619,1761449432632,-500.0,0.00032984,7]
[392413620,1761449432642,-500.0,0.00032984,7]
[392413621,1761449432652,-492.6046437,0.00032984,7]
[392413622,1761449432661,-500.0,0.00032985,9]
[392413623,1761449432671,-500.0,0.00032985,9]
[392413624,1761449432680,-300.0,0.00032985,2]
[392413625,1761449432689,-500.0,0.00032985,9]
[392413626,1761449432698,-174.69589277,0.00032985,9]
[392413627,1761449432708,-500.0,0.00032985,9]
[392413628,1761449432717,-500.0,0.00032985,9]
[392413629,1761449432726,-500.0,0.00032985,9]
[392413630,1761449432736,-500.0,0.00032985,9]
[392413631,1761449432745,-500.0,0.00032985,9]
[392413632,1761449432754,-500.0,0.00032985,9]
[392413633,1761449432763,-500.0,0.00032985,9]
[392413634,1761449432772,-500.0,0.00032985,9]
[392413635,1761449432781,-500.0,0.00032985,9]
[392413636,1761449432790,-500.0,0.00032985,9]
[392413637,1761449432799,-500.0,0.00032985,9]
[392413638,1761449432808,-500.0,0.00032985,9]
[392413639,1761449432817,-507.92,0.00032985,14]
[392413640,1761449432827,-500.0,0.00032985,9]
[392413641,1761449432836,-500.0,0.00032985,9]
[392413642,1761449432845,-500.0,0.00032985,9]
[392413643,1761449432854,-500.0,0.00032985,9]
[392413644,1761449432863,-500.0,0.00032985,9]
[392413645,1761449432872,-500.0,0.00032985,9]
[392413646,1761449432882,-500.0,0.00032985,9]
[392413647,1761449432892,-500.0,0.00032985,9]
[392413648,1761449432902,-500.0,0.00032987,9]
[392413649,1761449432911,-168.18469754,0.00032987,9]
[392413650,1761449432920,-500.0,0.00032987,9]
[392413651,1761449432929,-500.0,0.00032987,9]
[392413652,1761449432938,-309.90741851,0.00032987,9]
[392413653,1761449432947,-1253.12991509,0.00033,2]
[392413654,1761449432956,-216.30493057,0.00033,120]
[392413655,1761449432965,-1425.0,0.00033018,2]
[392413656,1761449432974,-1425.0,0.00033029,2]
[392413657,1761449432983,-2066.984,0.00033045,2]
[392413658,1761449432993,-3434.521,0.00033045,2]
[392413659,1761449433002,-825.56,0.00033045,2]
[392413660,1761449433011,-575.979,0.00033045,2]
[392413661,1761449433021,-605.0,0.00033045,2]
[392413662,1761449433030,-1591.0,0.00033045,2]
[392413663,1761449433040,-912.44,0.00033045,2]
[392413664,1761449433049,-6458.0,0.00033045,2]
[392413665,1761449433059,-558.0,0.00033045,2]
[392413666,1761449433068,-3489.0,0.00033045,2]
[392413667,1761449433078,-168.0,0.00033051,2]
[392413668,1761449433088,-1425.0,0.00033075,2]
[392413669,1761449433097,-1471.24358899,0.00033077,2]
[392413670,1761449433107,-2007.2398,0.00033086,3]
[392413671,1761449433116,-438.18,0.00033095,2]
[392413672,1761449433125,-1300.0,0.00033098,15]
[392413673,1761449433134,-1425.0,0.00033123,2]
[392413674,1761449433144,-171.8542848,0.00033134,2]
[392413675,1761449433153,-3604.76663004,0.00033159,2]
[392413676,1761449433163,-1425.0,0.0003316,2]
[392413677,1761449433172,-2500.0,0.0003316,2]
[392413678,1761449433181,-1000.0,0.0003316,2]
[392413679,1761449433190,-1576.9325,0.00033162,2]
[392413680,1761449433199,-327.7758,0.00033162,2]
[392413681,1761449433208,-300.21,0.00033165,2]
[392413682,1761449433217,-150.0,0.00033193,7]
[392413683,1761449433226,-150.0,0.00033193,7]
[392413684,1761449433235,-1425.0,0.00033204,2]
[392413685,1761449433245,-500.0,0.00033207,2]
[392413686,1761449433254,-500.0,0.00033207,9]
[392413687,1761449433264,-150.0,0.00033207,9]
[392413688,1761449433273,-197.04836143,0.00033248,2]
[392413689,1761449433282,-152.02875151,0.00033248,2]
[392413690,1761449433292,-834.94553,0.00033251,2]
[392413691,1761449433301,-559.26,0.00033251,3]
[392413692,1761449433309,-312.2206873,0.00033251,3]
[392413693,1761449433318,-271.99619308,0.00033252,7]
[392413694,1761449433327,-500.0,0.00033252,7]
[392413695,1761449433337,-500.0,0.00033252,7]
[392413696,1761449433346,-200.0,0.00033252,2]
[392413697,1761449433356,-152.0,0.00033255,5]
[392413698,1761449433365,-500.0,0.00033259,9]
[392413699,1761449433375,-151.35956921,0.00033259,7]
[392413700,1761449433384,-500.0,0.00033259,9]
[392413701,1761449433394,-279.14229223,0.00033259,2]
[392413702,1761449433403,-500.0,0.00033259,9]
[392413703,1761449433412,-500.0,0.00033259,9]
[392413704,1761449433422,-500.0,0.00033259,9]
[392413705,1761449433431,-500.0,0.00033259,9]
[392413706,1761449433440,-500.0,0.00033259,9]
[392413707,1761449433449,-368.0478396,0.00033259,9]
[392413708,1761449433458,-500.0,0.00033259,9]
[392413709,1761449433468,-500.0,0.00033259,9]
[392413710,1761449433477,-500.0,0.00033259,9]
[392413711,1761449433486,-500.0,0.00033259,9]
[392413712,1761449433496,-500.0,0.00033259,9]
[392413713,1761449433630,-500.0,0.00033259,9]
[392413714,1761449433639,-500.0,0.00033259,9]
[392413715,1761449433649,-507.92,0.00033259,14]
[392413716,1761449433659,-500.0,0.00033259,9]
[392413717,1761449433668,-500.0,0.00033259,9]
[392413718,1761449433677,-500.0,0.00033259,9]
[392413719,1761449433685,-313.78040186,0.00033259,9]
[392413720,1761449433695,-500.0,0.00033259,9]
[392413721,1761449433704,-500.0,0.00033259,9]
[392413722,1761449433714,-500.0,0.00033259,9]
[392413723,1761449433723,-500.0,0.00033259,9]
[392413724,1761449433733,-500.0,0.00033259,9]
[392413725,1761449433743,-500.0,0.00033259,9]
[392413726,1761449433752,-500.0,0.00033259,9]
[392413727,1761449433762,-500.0,0.00033259,9]
[392413728,1761449433771,-500.0,0.00033259,9]
[392413729,1761449433780,-500.0,0.00033259,9]
[392413730,1761449433790,-500.0,0.00033259,9]
[392413731,1761449433799,-500.0,0.00033259,9]
[392413732,1761449433808,-500.0,0.00033259,9]
[392413733,1761449433817,-500.0,0.00033259,9]
[392413734,1761449433826,-500.0,0.00033259,9]
[392413735,1761449433835,-500.0,0.00033259,9]
[392413736,1761449433846,-500.0,0.00033259,2]
[392413737,1761449433855,-500.0,0.00033259,9]
[392413738,1761449433865,-500.0,0.00033259,9]
[392413739,1761449433874,-500.0,0.00033259,9]
[392413740,1761449433884,-632.40536202,0.00033259,9]
[392413741,1761449433894,-500.0,0.00033259,9]
[392413742,1761449433903,-500.0,0.00033259,9]
[392413743,1761449433912,-500.0,0.00033259,9]
[392413744,1761449433922,-500.0,0.00033259,9]